fUST/lending_fUST_20250701
["ID","MTS","AMOUNT","RATE_DAILY","PERIOD"]
[368877399,1751381440430,-292.0,0.00017642,2]
[368877402,1751381440439,-478.0,0.00017669,2]
[368877405,1751381440449,-460.0,0.00017799,2]
[368877409,1751381440459,-460.0,0.00017799,2]
[368877412,1751381440469,-460.0,0.00017799,2]
[368877415,1751381440479,-460.0,0.00017799,2]
[368877417,1751381440489,-460.0,0.000178,2]
[368877420,1751381440500,-460.0,0.000178,2]
[368877423,1751381440509,-460.0,0.00017801,2]
[368877426,1751381440519,-460.0,0.00017801,2]
[368877429,1751381440528,-331.02,0.00017801,2]
[368877432,1751381440537,-460.0,0.00017801,2]
[368877435,1751381440547,-460.0,0.00017801,2]
[368877438,1751381440556,-460.0,0.00017801,2]
[368877441,1751381440566,-460.0,0.00017801,2]
[368877444,1751381440575,-460.0,0.00017801,2]
[368877447,1751381440586,-460.0,0.00017801,2]
[368877450,1751381440597,-460.0,0.00017801,2]
[368877453,1751381440607,-460.0,0.00018073,2]
[368877456,1751381440616,-460.0,0.00018073,2]
[368877459,1751381440626,-508.95,0.00018073,2]
[368877462,1751381440638,-460.0,0.00018073,2]
[368877465,1751381440648,-460.0,0.00018074,2]
[368877468,1751381440657,-460.0,0.00018074,2]
[368877471,1751381440668,-460.0,0.00018075,2]
[368877474,1751381440677,-460.0,0.00018075,2]
[368877477,1751381440687,-473.44,0.00018075,2]
[368877480,1751381440696,-460.0,0.00018075,2]
[368877483,1751381440706,-460.0,0.00018075,2]
[368877485,1751381440716,-460.0,0.00018075,2]
[368877487,1751381440726,-460.0,0.00018075,2]
[368877489,1751381440735,-460.0,0.00018075,2]
[368877491,1751381440746,-460.0,0.00018347,2]
[368877494,1751381440757,-460.0,0.00018347,2]
[368877497,1751381440766,-485.72,0.00018347,2]
[368877500,1751381440775,-460.0,0.00018348,2]
[368877503,1751381440785,-460.0,0.00018348,2]
[368877506,1751381440795,-460.0,0.00018349,2]
[368877509,1751381440805,-460.0,0.00018349,2]
[368877512,1751381440814,-460.0,0.00018349,2]
[368877515,1751381440824,-511.34,0.00018349,2]
[368877518,1751381440835,-460.0,0.00018349,2]
[368877521,1751381440844,-460.0,0.00018349,2]
[368877524,1751381440853,-569.58000243,0.00018621,2]
[368877527,1751381440863,-290.53,0.00018621,2]
[368877530,1751381440872,-460.0,0.00018622,2]
[368877533,1751381440882,-482.92515989,0.00018622,2]
[368877536,1751381440892,-460.0,0.00018623,2]
[368877539,1751381440902,-460.0,0.00018623,2]
[368877542,1751381440911,-460.0,0.00018623,2]
[368877545,1751381440920,-460.0,0.00018623,2]
[368877548,1751381440930,-460.0,0.00018623,2]
[368877551,1751381440940,-460.0,0.00018896,2]
[368877554,1751381440950,-460.0,0.00018897,2]
[368877557,1751381440960,-460.0,0.00018897,2]
[368877560,1751381440969,-571.63944053,0.00018897,2]
[368877563,1751381440979,-460.0,0.00018897,2]
[368877566,1751381440989,-460.0,0.00018897,2]
[368877568,1751381441000,-974.72339888,0.000189,2]
[368877570,1751381441010,-444.99810978,0.000189,2]
[368877572,1751381441019,-160.0,0.00019063,2]
[368877574,1751381441028,-215.01728679,0.00019063,2]
[368877576,1751381441038,-230.32585361,0.00019063,2]
[368877577,1751381441047,-847.53272281,0.00019063,2]
[368877580,1751381441056,-12571.40790328,0.00019063,2]
[368877581,1751381441066,-160.0,0.00019063,2]
[368877583,1751381441075,-160.0,0.00019063,2]
[368877585,1751381441085,-837.20943635,0.00019063,2]
[368877587,1751381441094,-213.87551669,0.00019063,2]
[368877589,1751381441104,-160.0,0.00019063,2]
[368877590,1751381441114,-974.72339867,0.00019141,2]
[368877591,1751381441124,-460.0,0.0001917,2]
[368877592,1751381441134,-460.0,0.00019171,2]
[368877593,1751381441144,-460.0,0.00019171,2]
[368877595,1751381441154,-460.0,0.00019171,2]
[368877597,1751381441164,-460.0,0.00019171,2]
[368877599,1751381441174,-206.870153,0.00019178,2]
[368877601,1751381441183,-460.0,0.00019307,2]
[368877602,1751381441193,-500.0,0.00019307,2]
[368877605,1751381441203,-974.72339867,0.00019383,2]
[368877607,1751381441212,-460.0,0.00019444,2]
[368877609,1751381441221,-460.0,0.00019445,2]
[368877611,1751381441231,-460.0,0.00019445,2]
[368877612,1751381441241,-460.0,0.00019445,2]
[368877615,1751381441251,-460.0,0.00019445,2]
[368877617,1751381441261,-974.72339867,0.00019624,2]
[368877619,1751381441271,-460.0,0.00019718,2]
[368877621,1751381441280,-460.0,0.00019719,2]
[368877623,1751381441289,-460.0,0.00019719,2]
[368877625,1751381441299,-460.0,0.00019719,2]
[368877627,1751381441308,-460.0,0.00019719,2]
[368877629,1751381441317,-308.22993222,0.00019865,2]
[368877631,1751381441327,-500.0,0.00019865,2]
[368877633,1751381441336,-607.64096651,0.00019865,2]
[368877635,1751381441345,-974.72339867,0.00019866,2]
[368877636,1751381441359,-460.0,0.00019992,2]
[368877639,1751381441368,-460.0,0.00019993,2]
[368877641,1751381441380,-460.0,0.00019993,2]
[368877643,1751381441389,-460.0,0.00019993,2]
[368877645,1751381441398,-460.0,0.00019993,2]
[368877647,1751381441408,-974.72339867,0.00020107,2]
[368877649,1751381441417,-287.724066,0.00020187,2]
[368877651,1751381441427,-460.0,0.00020266,2]
[368877653,1751381441436,-336.39,0.00020267,2]
[368877654,1751381441446,-460.0,0.00020267,2]
[368877656,1751381441458,-599.34974919,0.00020267,2]
[368877658,1751381441468,-593.5,0.00020267,2]
[368877660,1751381441477,-500.0,0.00020292,2]
[368877663,1751381441487,-1088.21,0.000203,2]
[368877664,1751381441496,-974.72339867,0.00020348,3]
[368877666,1751381441507,-439.6,0.0002054,2]
[368877669,1751381441516,-460.0,0.00020541,2]
[368877671,1751381441525,-974.72339867,0.0002059,3]
[368877673,1751381441535,-742.96,0.000206,2]
[368877675,1751381441544,-600.03,0.00020602,2]
[368877677,1751381441553,-460.0,0.00020815,2]
[368877679,1751381441563,-974.72339867,0.00020831,4]
[368877681,1751381441573,-319.39,0.00021062,3]
[368877683,1751381441583,-974.72339867,0.00021072,4]
[368877685,1751381441594,-460.0,0.00021089,2]
[368877687,1751381441604,-974.72339867,0.00021314,5]
[368877689,1751381441613,-460.0,0.00021363,2]
[368877691,1751381441622,-500.0,0.00021431,2]
[368877693,1751381441631,-500.0,0.00021432,2]
[368877695,1751381441641,-500.0,0.00021432,2]
[368877697,1751381441651,-500.0,0.00021432,2]
[368877698,1751381441660,-500.0,0.00021432,2]
[368877700,1751381441670,-500.0,0.00021432,2]
[368877702,1751381441680,-500.0,0.00021432,2]
[368877704,1751381441689,-500.0,0.00021432,2]
[368877707,1751381441699,-500.0,0.00021432,2]
[368877709,1751381441708,-207.4,0.00021432,2]
[368877710,1751381441717,-500.0,0.00021432,2]
[368877712,1751381441727,-500.0,0.00021432,2]
[368877715,1751381441736,-500.0,0.00021432,2]
[368877717,1751381441745,-500.0,0.00021432,2]
[368877719,1751381441755,-500.0,0.00021432,2]
[368877720,1751381441764,-500.0,0.00021432,2]
[368877723,1751381441774,-500.0,0.00021432,2]
[368877725,1751381441784,-500.0,0.00021432,2]
[368877726,1751381441793,-500.0,0.00021432,2]
[368877729,1751381441803,-500.0,0.00021432,2]
[368877730,1751381441812,-500.0,0.00021432,2]
[368877732,1751381441822,-500.0,0.00021432,2]
[368877735,1751381441831,-500.0,0.00021432,2]
[368877736,1751381441841,-500.0,0.00021432,2]
[368877739,1751381441850,-500.0,0.00021432,2]
[368877740,1751381441860,-500.0,0.00021432,2]
[368877743,1751381441870,-500.0,0.00021432,2]
[368877744,1751381441879,-172.43172629,0.00021432,2]
[368877747,1751381441889,-974.72339867,0.00021555,5]
[368877749,1751381441899,-460.0,0.00021637,2]
[368877751,1751381441909,-974.72339867,0.00021797,6]
[368877753,1751381441919,-460.0,0.00021911,2]
[368877755,1751381441928,-213.87551669,0.00022,7]
[368877757,1751381441938,-974.72339867,0.00022038,6]
[368877759,1751381441948,-460.0,0.00022185,2]
[368877761,1751381441957,-974.72339867,0.00022279,6]
[368877763,1751381441967,-481.74,0.00022459,2]
[368877765,1751381441977,-500.0,0.00022484,2]
[368877767,1751381441986,-974.72339867,0.00022521,7]
[368877769,1751381441996,-206.870153,0.00022603,2]
[368877771,1751381442008,-974.72339867,0.00022762,7]
[368877773,1751381442019,-742.96,0.000228,7]
[368877775,1751381442030,-215.0738,0.00022801,2]
[368877777,1751381442041,-974.72339867,0.00023003,8]
[368877779,1751381442051,-500.0,0.00023096,2]
[368877781,1751381442061,-500.0,0.00023107,2]
[368877783,1751381442071,-974.72339867,0.00023245,8]
[368877786,1751381442081,-500.0,0.00023454,2]
[368877788,1751381442091,-732.3484949,0.00023468,2]
[368877790,1751381442100,-966.0,0.00023478,2]
[368877792,1751381442110,-646.0,0.00023478,2]
[368877794,1751381442120,-2151.0,0.00023478,2]
[368877796,1751381442130,-406.0,0.00023478,2]
[368877798,1751381442140,-974.72339867,0.00023486,9]
[368877800,1751381442150,-175.72665235,0.00023616,2]
[368877802,1751381442159,-175.72665235,0.00023726,2]
[368877804,1751381442169,-974.72339867,0.00023728,9]
[368877806,1751381442179,-500.0,0.00023742,2]
[368877808,1751381442189,-175.72665235,0.00023836,2]
[368877810,1751381442199,-500.0,0.00023845,2]
[368877812,1751381442209,-176.72989849,0.00023862,2]
[368877814,1751381442225,-1985.68246718,0.00023862,2]
[368877816,1751381442235,-444.99810978,0.000239,2]
[368877818,1751381442245,-175.72665234,0.00023918,2]
[368877820,1751381442258,-175.72665237,0.00023918,2]
[368877822,1751381442268,-175.72665235,0.00023945,2]
[368877824,1751381442278,-2200.0,0.00023953,2]
[368877827,1751381442288,-974.72339867,0.00023969,10]
[368877828,1751381442298,-500.0,0.00023999,2]
[368877830,1751381442307,-80.15844581,0.00024,50]
[368877833,1751381442320,-3599.58113018,0.00024,50]
[368877835,1751381442332,-3409.40134464,0.00024,50]
[368877838,1751381442353,-460.0,0.00018075,2]
[368877840,1751381442362,-7910.85907937,0.00024,50]
[368877842,1751381442372,-524.61914904,0.00024,3]
[368877844,1751381442381,-524.61914904,0.00024,3]
[368877846,1751381442392,-175.72665235,0.00024055,2]
[368877849,1751381442402,-306.0,0.00024094,2]
[368877851,1751381442414,-175.72665235,0.00024164,2]
[368877853,1751381442423,-223.0315306,0.0002417,2]
[368877855,1751381442433,-600.0,0.00024207,2]
[368877857,1751381442442,-974.72339867,0.0002421,10]
[368877859,1751381442451,-175.72665234,0.00024219,2]
[368877861,1751381442461,-175.72665237,0.00024219,2]
[368877863,1751381442471,-500.0,0.00024223,2]
[368877865,1751381442479,-500.0,0.00024242,2]
[368877867,1751381442489,-809.0,0.00024243,2]
[368877869,1751381442499,-500.0,0.00024256,2]
[368877871,1751381442509,-175.72665235,0.00024301,2]
[368877873,1751381442518,-306.0,0.00024329,2]
[368877875,1751381442528,-800.0,0.0002437,2]
[368877877,1751381442537,-2162.41236567,0.00024382,2]
[368877879,1751381442547,-175.72665235,0.00024411,2]
[368877881,1751381442556,-359.6401008,0.00024411,2]
[368877883,1751381442565,-177.5384831,0.00024411,2]
[368877885,1751381442575,-974.72339867,0.00024452,11]
[368877887,1751381442584,-2714.95,0.000245,30]
[368877889,1751381442594,-742.96,0.000245,7]
[368877891,1751381442605,-175.72665235,0.00024521,2]
[368877893,1751381442617,-809.0,0.00024544,2]
[368877895,1751381442626,-175.72665234,0.00024548,2]
[368877897,1751381442636,-175.72665237,0.00024548,2]
[368877899,1751381442646,-809.0,0.00024582,2]
[368877901,1751381442656,-175.72665235,0.0002463,2]
[368877903,1751381442665,-2162.41236567,0.00024641,2]
[368877905,1751381442675,-1384.927014,0.00024655,4]
[368877908,1751381442687,-200.0,0.00024658,15]
[368877910,1751381442697,-380.0,0.00024658,2]
[368877912,1751381442706,-475.94548763,0.00024658,2]
[368877914,1751381442716,-500.0,0.00024658,2]
[368877916,1751381442726,-500.0,0.00024676,7]
[368877918,1751381442736,-500.0,0.00024685,2]
[368877920,1751381442746,-809.0,0.00024688,2]
[368877922,1751381442759,-809.0,0.00024689,2]
[368877924,1751381442768,-974.72339867,0.00024693,11]
[368877926,1751381442778,-151.0,0.000247,9]
[368877928,1751381442790,-658.33746762,0.000247,2]
[368877930,1751381442800,-500.0,0.00024713,2]
[368877932,1751381442810,-175.72665235,0.0002474,2]
[368877950,1751381442963,-500.0,0.0002474,2]
[368877952,1751381442973,-809.0,0.00024743,2]
[368877954,1751381442983,-295.06156123,0.00024767,2]
[368877956,1751381442993,-500.0,0.00024768,2]
[368877958,1751381443006,-658.33746762,0.00024781,2]
[368877960,1751381443016,-1740.16,0.0002479,10]
[368877963,1751381443027,-1450.14,0.0002479,10]
[368877965,1751381443037,-268.70071856,0.00024795,2]
[368877967,1751381443047,-169.0446336,0.000248,2]
[368877970,1751381443057,-24944.18,0.000248,7]
[368877972,1751381443067,-2616.16,0.000248,7]
[368877974,1751381443077,-1646.8926066,0.000248,3]
[368877976,1751381443087,-215.01728679,0.000248,7]
[368877978,1751381443096,-160.0,0.000248,7]
[368877981,1751381443106,-847.53272281,0.000248,7]
[368877983,1751381443116,-160.0,0.000248,7]
[368877985,1751381443126,-837.20943635,0.000248,7]
[368877988,1751381443136,-230.32585361,0.000248,7]
[368877991,1751381443146,-75895.00560011,0.00024835,2]
[368877994,1751381443156,-175.72665235,0.00024849,2]
[368877997,1751381443166,-658.33746762,0.00024863,2]
[368878000,1751381443176,-500.0,0.00024873,2]
[368878003,1751381443186,-500.0,0.00024873,2]
[368878006,1751381443196,-500.0,0.00024873,2]
[368878009,1751381443206,-500.0,0.00024873,2]
[368878012,1751381443215,-410356.47895451,0.000249,2]
[368878015,1751381443227,-212000.0,0.000249,2]
[368878020,1751381443239,-5951.08891974,0.000249,2]
[368878023,1751381443252,-1673.55523725,0.000249,2]
[368878026,1751381443264,-2418.19999998,0.000249,2]
[368878029,1751381443276,-10205.94597552,0.000249,2]
[368878033,1751381443285,-383.05402448,0.0002493,2]
[368878038,1751381443297,-594.78239997,0.0002493,2]
[368878066,1751381443426,-460.0,0.00018349,2]
[368878069,1751381443437,-460.0,0.00018623,2]
[368878072,1751381443447,-460.0,0.00018897,2]
[368878075,1751381443457,-74917.16917564,0.0002493,2]
[368878078,1751381443466,-974.72339867,0.00024934,12]
[368878081,1751381443476,-658.33746762,0.00024944,2]
[368878084,1751381443486,-1210.36625657,0.00024999,14]
[368878087,1751381443495,-190.0,0.00025,7]
[368878090,1751381443508,-14118.71281433,0.00025,2]
[368878093,1751381443518,-223.27068908,0.00025,120]
[368878096,1751381443528,-2614.17144256,0.00025,2]
[368878099,1751381443537,-207.37308953,0.00025,2]
[368878102,1751381443547,-9375.875666,0.00025,2]
[368878105,1751381443558,-724.78789557,0.00025,2]
[368878107,1751381443569,-263.33643843,0.00025,2]
[368878109,1751381443579,-169.71975285,0.00025,2]
[368878112,1751381443591,-188.24632388,0.00025,2]
[368878115,1751381443604,-483.13216487,0.00025,120]
[368878243,1751381444602,-460.0,0.00017253,2]
[368878245,1751381444615,-460.0,0.00017527,2]
[368878247,1751381444624,-460.0,0.00017801,2]
[368878249,1751381444634,-477.3,0.00018075,2]
[368878251,1751381444644,-460.0,0.00019171,2]
[368878253,1751381444654,-460.0,0.00019445,2]
[368878255,1751381444663,-460.0,0.00019719,2]
[368878257,1751381444672,-460.0,0.00019993,2]
[368878259,1751381444683,-460.0,0.00020267,2]
[368878261,1751381444692,-460.0,0.00020541,2]
[368878264,1751381444702,-160.15,0.00020815,2]
[368878266,1751381444712,-26907.11,0.000249,2]
[368878267,1751381444721,-92.08324926,0.00025,120]
[368878270,1751381444730,-150.0,0.00025,2]
[368878272,1751381444739,-3694.83976123,0.00025,10]
[368878276,1751381444752,-11455.68469332,0.00025,10]
[368878280,1751381444764,-2679.50809822,0.00025,10]
[368878282,1751381444774,-213.87551669,0.00025,10]
[368878284,1751381444783,-20000.0,0.00025,50]
[368878286,1751381444793,-215.01728679,0.00025,10]
[368878288,1751381444803,-160.0,0.00025,10]
[368878290,1751381444813,-847.53272281,0.00025,10]
[368878292,1751381444822,-524.61914904,0.00025,10]
[368878294,1751381444831,-160.0,0.00025,10]
[368878296,1751381444841,-837.20943635,0.00025,10]
[368878298,1751381444850,-230.32585361,0.00025,10]
[368878300,1751381444859,-809.0,0.00025024,2]
[368878302,1751381444869,-49688.23641788,0.00025025,2]
[368878304,1751381444878,-4153.67871931,0.00025025,2]
[368878306,1751381444888,-169.04463359,0.00025025,2]
[368878308,1751381444898,-75895.00560009,0.00025025,2]
[368878310,1751381444908,-658.33746762,0.00025025,2]
[368878312,1751381444918,-33619.45819719,0.00025026,2]
[368878314,1751381444927,-150.0,0.00025073,2]
[368878316,1751381444936,-150.0,0.00025073,2]
[368878318,1751381444946,-809.0,0.00025078,2]
[368878320,1751381444956,-2000.0,0.000251,2]
[368878322,1751381444967,-2000.0,0.000251,2]
[368878324,1751381444976,-250.0,0.000251,7]
[368878326,1751381444986,-250.0,0.000251,7]
[368878329,1751381444996,-250.0,0.000251,7]
[368878331,1751381445007,-250.0,0.000251,7]
[368878333,1751381445016,-250.0,0.000251,7]
[368878335,1751381445027,-250.0,0.000251,7]
[368878337,1751381445036,-250.0,0.000251,7]
[368878339,1751381445045,-250.0,0.000251,7]
[368878341,1751381445055,-250.0,0.000251,7]
[368878343,1751381445064,-250.0,0.000251,7]
[368878345,1751381445073,-250.0,0.000251,7]
[368878347,1751381445083,-250.0,0.000251,7]
[368878349,1751381445093,-250.0,0.000251,7]
[368878351,1751381445102,-250.0,0.000251,7]
[368878353,1751381445111,-250.0,0.000251,7]
[368878355,1751381445121,-250.0,0.000251,7]
[368878357,1751381445131,-250.0,0.000251,7]
[368878359,1751381445140,-312.2,0.000251,7]
[368878361,1751381445151,-2000.0,0.000251,2]
[368878363,1751381445161,-366.3581911,0.00025123,2]
[368878365,1751381445170,-153.0,0.00025123,2]
[368878367,1751381445180,-366.3581911,0.00025123,2]
[368878369,1751381445190,-366.3581911,0.00025123,2]
[368878371,1751381445199,-365.9903038,0.00025123,2]
[368878373,1751381445208,-151.0,0.00025125,7]
[368878375,1751381445217,-151.0,0.00025125,7]
[368878377,1751381445227,-151.0,0.00025125,7]
[368878379,1751381445236,-151.0,0.00025125,7]
[368878381,1751381445245,-151.0,0.00025125,7]
[368878383,1751381445257,-151.0,0.00025125,7]
[368878385,1751381445267,-151.0,0.00025125,7]
[368878386,1751381445276,-151.0,0.00025125,7]
[368878387,1751381445286,-151.0,0.00025125,7]
[368878388,1751381445295,-268.561224,0.00025125,7]
[368878389,1751381445305,-151.0,0.00025125,7]
[368878390,1751381445314,-151.0,0.00025125,7]
[368878391,1751381445324,-151.0,0.00025125,7]
[368878392,1751381445334,-151.0,0.00025125,7]
[368878393,1751381445343,-151.0,0.00025125,7]
[368878394,1751381445353,-151.0,0.00025125,7]
[368878395,1751381445363,-151.0,0.00025125,7]
[368878396,1751381445372,-151.0,0.00025125,7]
[368878398,1751381445382,-151.0,0.00025125,7]
[368878400,1751381445391,-151.0,0.00025125,7]
[368878402,1751381445401,-257.704234,0.00025125,7]
[368878404,1751381445410,-151.750508,0.00025125,7]
[368878406,1751381445420,-151.0,0.00025125,7]
[368878408,1751381445430,-151.0,0.00025125,7]
[368878410,1751381445440,-151.0,0.00025125,7]
[368878412,1751381445451,-151.0,0.00025125,7]
[368878414,1751381445460,-151.0,0.00025125,7]
[368878416,1751381445470,-151.0,0.00025125,7]
[368878418,1751381445480,-151.0,0.00025125,7]
[368878420,1751381445489,-151.0,0.00025125,7]
[368878422,1751381445502,-151.0,0.00025125,7]
[368878424,1751381445511,-151.0,0.00025125,7]
[368878426,1751381445521,-288.390054,0.00025125,7]
[368878428,1751381445531,-300.288699,0.00025125,7]
[368878430,1751381445541,-151.0,0.00025125,7]
[368878432,1751381445550,-264.82166,0.00025125,7]
[368878434,1751381445560,-151.0,0.00025125,7]
[368878436,1751381445570,-151.0,0.00025125,7]
[368878438,1751381445579,-167.445084,0.00025125,7]
[368878440,1751381445591,-151.0,0.00025125,7]
[368878442,1751381445601,-151.0,0.00025125,7]
[368878444,1751381445613,-279.158323,0.00025125,7]
[368878446,1751381445623,-151.0,0.00025125,7]
[368878448,1751381445634,-151.0,0.00025125,7]
[368878450,1751381445644,-152.266266,0.00025125,7]
[368878452,1751381445654,-151.0,0.00025125,7]
[368878454,1751381445663,-151.0,0.00025125,7]
[368878456,1751381445673,-151.0,0.00025125,7]
[368878458,1751381445684,-151.0,0.00025125,7]
[368878460,1751381445693,-151.0,0.00025125,7]
[368878462,1751381445703,-151.0,0.00025125,7]
[368878464,1751381445712,-151.0,0.00025125,7]
[368878466,1751381445722,-151.0,0.00025125,7]
[368878468,1751381445731,-151.0,0.00025125,7]
[368878470,1751381445741,-151.0,0.00025125,7]
[368878472,1751381445753,-151.0,0.00025125,7]
[368878474,1751381445763,-156.537227,0.00025125,7]
[368878476,1751381445772,-151.0,0.00025125,7]
[368878478,1751381445782,-151.0,0.00025125,7]
[368878480,1751381445791,-151.0,0.00025125,7]
[368878482,1751381445800,-151.0,0.00025125,7]
[368878484,1751381445810,-151.0,0.00025125,2]
[368878486,1751381445819,-151.0,0.00025125,2]
[368878488,1751381445829,-151.0,0.00025125,2]
[368878490,1751381445838,-151.0,0.00025125,2]
[368878492,1751381445848,-151.0,0.00025125,2]
[368878494,1751381445858,-151.0,0.00025125,2]
[368878496,1751381445867,-151.0,0.00025125,2]
[368878498,1751381445876,-151.0,0.00025125,2]
[368878500,1751381445886,-151.0,0.00025125,2]
[368878502,1751381445895,-151.0,0.00025125,2]
[368878504,1751381445904,-151.0,0.00025125,2]
[368878506,1751381445913,-151.0,0.00025125,2]
[368878508,1751381445922,-151.0,0.00025125,2]
[368878510,1751381445932,-151.0,0.00025125,2]
[368878512,1751381445941,-151.0,0.00025125,2]
[368878514,1751381445951,-213.17072,0.00025125,2]
[368878515,1751381445961,-151.0,0.00025125,7]
[368878517,1751381445972,-151.0,0.00025125,7]
[368878519,1751381445982,-151.0,0.00025125,7]
[368878521,1751381445992,-297.136308,0.00025125,7]
[368878523,1751381446002,-163.257805,0.00025125,7]
[368878526,1751381446012,-151.0,0.00025125,7]
[368878527,1751381446021,-166.1,0.00025125,7]
[368878529,1751381446031,-151.0,0.00025125,7]
[368878532,1751381446040,-151.0,0.00025125,7]
[368878535,1751381446051,-151.0,0.00025125,7]
[368878538,1751381446060,-151.0,0.00025125,7]
[368878542,1751381446072,-151.0,0.00025125,7]
[368878543,1751381446082,-151.0,0.00025125,7]
[368878546,1751381446091,-151.0,0.00025125,7]
[368878549,1751381446100,-272.173186,0.00025125,7]
[368878552,1751381446110,-151.0,0.00025125,7]
[368878554,1751381446119,-151.0,0.00025125,7]
[368878556,1751381446129,-151.0,0.00025125,7]
[368878558,1751381446139,-264.262535,0.00025125,7]
[368878561,1751381446148,-151.0,0.00025125,7]
[368878564,1751381446158,-168.283172,0.00025125,7]
[368878567,1751381446168,-168.283172,0.00025125,7]
[368878569,1751381446177,-168.283172,0.00025125,7]
[368878571,1751381446187,-168.283172,0.00025125,7]
[368878573,1751381446196,-168.283172,0.00025125,7]
[368878575,1751381446206,-168.283172,0.00025125,7]
[368878577,1751381446215,-168.283172,0.00025125,7]
[368878579,1751381446225,-168.283172,0.00025125,7]
[368878581,1751381446235,-168.283172,0.00025125,7]
[368878583,1751381446245,-168.283172,0.00025125,7]
[368878585,1751381446256,-168.283172,0.00025125,7]
[368878587,1751381446266,-168.283172,0.00025125,7]
[368878589,1751381446275,-168.283172,0.00025125,7]
[368878591,1751381446284,-168.283172,0.00025125,7]
[368878593,1751381446293,-168.283172,0.00025125,7]
[368878595,1751381446303,-168.283172,0.00025125,7]
[368878597,1751381446312,-168.283172,0.00025125,7]
[368878599,1751381446322,-151.0,0.00025125,7]
[368878601,1751381446331,-151.0,0.00025125,7]
[368878603,1751381446341,-168.283172,0.00025125,7]
[368878605,1751381446350,-153.012771,0.00025125,7]
[368878607,1751381446359,-168.283172,0.00025125,7]
[368878609,1751381446369,-168.283174,0.00025125,7]
[368878611,1751381446378,-151.0,0.00025125,7]
[368878613,1751381446388,-151.344603,0.00025125,7]
[368878615,1751381446397,-151.0,0.00025125,7]
[368878617,1751381446407,-151.0,0.00025125,7]
[368878619,1751381446417,-151.0,0.00025125,7]
[368878621,1751381446427,-151.0,0.00025125,7]
[368878623,1751381446437,-151.0,0.00025125,7]
[368878625,1751381446446,-151.0,0.00025125,7]
[368878627,1751381446455,-151.0,0.00025125,7]
[368878629,1751381446465,-151.0,0.00025125,7]
[368878631,1751381446474,-151.0,0.00025125,7]
[368878633,1751381446483,-151.0,0.00025125,7]
[368878635,1751381446492,-153.703168,0.00025125,7]
[368878637,1751381446504,-211.131602,0.00025125,7]
[368878639,1751381446513,-151.0,0.00025125,7]
[368878641,1751381446522,-151.0,0.00025125,7]
[368878643,1751381446532,-151.0,0.00025125,7]
[368878645,1751381446542,-226.831649,0.00025125,7]
[368878647,1751381446551,-151.0,0.00025125,7]
[368878649,1751381446560,-226.831649,0.00025125,7]
[368878650,1751381446570,-151.0,0.00025125,7]
[368878652,1751381446580,-206.669806,0.00025125,7]
[368878655,1751381446591,-226.831649,0.00025125,7]
[368878657,1751381446601,-226.831649,0.00025125,7]
[368878659,1751381446614,-226.831649,0.00025125,7]
[368878660,1751381446624,-151.0,0.00025125,7]